Cogmind - Beta 13 @@@ ROGUE MODE // 2024.04.30 @ 03:37:57 Player: Zaros426 Result: Destroyed by Y-45 Defender with Beam Rifle Performance ------------- Evolutions (0) 0 Regions Visited (2) 400 Robots Destroyed (31) 155 Value Destroyed (604) 604 Prototype IDs (2) 40 Alien Tech Used (0) 0 Bonus (0) 0 TOTAL SCORE: 1199 Bonus ------- None Cogmind --------- Core Integrity 0/250 Matter 170/300 Energy 243/250 System Corruption 0% Temperature Hot (200) Movement Treading (160) Location -10/Mines Parts ------- > --- POWER (1) -------- Ion Engine > --- PROPULSION (2) --- Improved Treads Improved Treads > --- UTILITY (2) ------ Large Storage Unit Seismic Detector > --- WEAPON (2) ------- Particle Cannon Assault Rifle > --- INVENTORY (15) --- Improved Treads Improved Treads Compact Wheel Structural Scanner Signal Interpreter Improved Terrain Scanner Medium Laser Particle Cannon Particle Cannon Particle Cannon Mace Mace Mace Mace Peak State ------------ > --- POWER ------------ Ion Engine > --- PROPULSION ------- Improved Treads Improved Treads > --- UTILITY ---------- Large Storage Unit Seismic Detector > --- WEAPON ----------- Particle Cannon Mace > --- INVENTORY -------- Improved Treads Improved Treads Compact Wheel Improved Terrain Scanner Medium Laser Particle Cannon Particle Cannon Particle Cannon Assault Rifle Grenade Launcher Mace Mace [Rating: 13] Favorites ----------- Power Ion Engine Engine Ion Engine Propulsion Improved Treads Treads Improved Treads Wheel Compact Wheel Utility Seismic Detector Device Seismic Detector Storage Large Storage Unit Weapon Medium Laser Energy Gun Medium Laser Energy Cannon Particle Cannon Ballistic Gun Assault Rifle Launcher Grenade Launcher Impact Weapon Mace Build | -11 -10 -10 ------- Run | Yrd Mat Min Slots Evolved . | . . . Power . | . . . Propulsion . | . . . Utility . | . . . Weapon . | . . . Parts Attached 17 | 7 7 3 Power 1 | 1 . . Engine 1 | 1 . . Core . | . . . Reactor . | . . . Propulsion 6 | 2 2 2 Treads 5 | 2 2 1 Leg . | . . . Wheel 1 | . . 1 Hover . | . . . Flight . | . . . Utility 3 | 2 1 . Device 1 | 1 . . Storage 2 | 1 1 . Processor . | . . . Hackware . | . . . Protection . | . . . Artifact . | . . . Weapon 7 | 2 4 1 Energy Gun 2 | 2 . . Energy Cannon 1 | . 1 . Ballistic Gun 2 | . 1 1 Ballistic Cannon . | . . . Launcher 1 | . 1 . Special Weapon . | . . . Impact Weapon 1 | . 1 . Slashing Weapon . | . . . Piercing Weapon . | . . . Special Melee Weapon . | . . . Unidentified Prototypes . | . . . Parts Lost 2 | . 1 1 Power . | . . . Propulsion . | . . . Utility . | . . . Weapon 2 | . 1 1 Highest Loss Streak 1 | . 1 1 To Critical Strikes . | . . . Average Slot Usage (%) 99 | . 99 100 Engine 14 | . 14 14 Treads 27 | . 28 26 Device 14 | . 14 14 Storage 14 | . 14 14 Energy Gun 7 | . 19 . Energy Cannon 9 | . 2 14 Ballistic Gun 1 | . 4 . Launcher 8 | . . 13 Naked Turns . | . . . Heaviest Build 33 | 15 33 33 Greatest Support 46 | 40 46 46 Greatest Overweight (x) 2 | 1 . 2 Average Overweight (x) . | . . . Largest Inventory Capacity 15 | 8 15 15 Average Capacity 13 | 7 12 15 Most Carried 15 | 2 15 15 Average Carried 10 | 1 4 14 Final Capacity 15 | 8 15 15 Final Carried 15 | 2 15 14 Class Distribution -------------------- 100% | Mutant Dominant Class ---------------- Mutant | -10/Materials Mutant | -10/Mines Resources | -11 -10 -10 ----------- Run | Yrd Mat Min Matter Collected 468 | 213 198 57 Remotely . | . . . Salvage Created 687 | 56 551 80 Parts 54 | 8 32 14 Haulers Intercepted . | . . . Recyclers Shooed 1 | . 1 . Parts Field Recycled . | . . . Retrieved Matter . | . . . Parts Self-Destructed . | . . . Prevented . | . . . Kills | -11 -10 -10 ------- Run | Yrd Mat Min Combat Hostiles Destroyed 21 | . 14 7 Guns 11 | . 11 . Cannons 1 | . . 1 AOE 9 | . 3 6 Classes Destroyed 6 | 1 5 . Builder 2 | . 2 . Tunneler 5 | 3 1 1 Operator 2 | . 2 . Watcher 1 | . 1 . Swarmer 9 | . 3 6 Grunt 12 | . 11 1 Best Kill Streak 4 | 3 4 3 Combat Bots Only 3 | . 3 3 Max Kills in Single Turn 2 | 1 2 2 Gunslinging 1 | . 1 . Exploded 2 | . 2 2 Melee . | . . . Uniques/NPCs Destroyed . | . . . Combat | -11 -10 -10 -------- Run | Yrd Mat Min Hostile Shots Fired 115 | . 74 41 Missed 36 | . 19 17 Damage Taken 952 | . 619 333 Core 262 | . 185 77 Absorbed by Shields . | . . . Core Remaining (%) 100 | 100 . . Volleys Fired 89 | 6 60 23 Largest 2 | 2 2 2 Hottest 100 | 100 100 88 Shots Fired 156 | 12 117 27 Gun 131 | 12 115 4 Cannon 11 | . . 11 Launcher 14 | . 2 12 Special . | . . . Kinetic 31 | . 27 4 Thermal 111 | 12 88 11 Explosive 14 | . 2 12 Electromagnetic . | . . . Robot Hit Streak 13 | 4 13 9 Robot Miss Streak 3 | 2 3 2 Penetration Max . | . . . Secondary Targets 2 | . 2 . Max Gunslinging Chain 1 | . 1 . Shots Hit Robots 96 | 7 73 16 Core Hits 49 | 3 37 9 Critical Kills . | . . . Critical Parts Destroyed . | . . . Critical Strikes 9 | 1 8 . Burn 9 | 1 8 . Melee Attacks . | . . . Impact . | . . . Slashing . | . . . Piercing . | . . . Sneak Attacks . | . . . Combat Hostiles . | . . . Follow-up Attacks . | . . . Damage Inflicted 2004 | 89 1137 778 Guns 1104 | 89 966 49 Cannons 197 | . . 197 Explosions 703 | . 171 532 Melee . | . . . Ramming . | . . . Kinetic 262 | . 213 49 Thermal 1039 | 89 753 197 Explosive 703 | . 171 532 Electromagnetic . | . . . Impact . | . . . Slashing . | . . . Piercing . | . . . Highest Corruption . | . . . Average Corruption . | . . . Corruption Purged . | . . . Corruption Blocked . | . . . Overload Shots . | . . . Overflow Damage 8 | . 4 4 Projectiles . | . . . Explosions 8 | . 4 4 Melee . | . . . Knockbacks . | . . . Impact . | . . . Kinetic . | . . . Secondary . | . . . Self-Inflicted Damage 20 | . . 20 Shots 1 | . . 1 Rammed . | . . . Targets Rammed . | . . . Kicked . | . . . Crushed . | . . . Highest Temperature 415 | 117 415 191 Average Temperature 105 | 46 117 66 Received Heat Transfer 522 | . 342 180 Effects 2 | . 2 . Energy Bleed 1 | . 1 . Damage (minor) 1 | . 1 . Siege Activations . | . . . Robots Corrupted . | . . . Combat Hostiles . | . . . Parts Fried . | . . . Impact Corruptions . | . . . Robots Melted . | . . . Combat Hostiles . | . . . Parts Melted 9 | 1 8 . Heat Transferred 3404 | 333 2738 333 Parts Sabotaged . | . . . Parts Stolen . | . . . Parts Stripped . | . . . Power Chain Reactions . | . . . Alert | -11 -10 -10 ------- Run | Yrd Mat Min Peak Influence 251 | 15 251 172 Initial 88 | . 9 88 Average 74 | 5 115 56 Maximum Alert Level 1 | . 1 . Low Security (%) 97 | 100 93 100 Level 1 2 | . 6 . Level 2 . | . . . Level 3 . | . . . Level 4 . | . . . Level 5 . | . . . High Security . | . . . Max Security . | . . . Squads Dispatched 5 | . 5 . Investigation 3 | . 3 . Extermination . | . . . Reinforcement 2 | . 2 . Assault . | . . . Garrison . | . . . Intercept . | . . . Searches Triggered . | . . . Construction Impeded . | . . . Haulers Reinforced . | . . . Active Scanning Responses . | . . . Cargo Convoy Interrupts . | . . . Stealth | -11 -10 -10 --------- Run | Yrd Mat Min Distress Signals 3 | . 3 . Communications Jammed . | . . . Distress Signals . | . . . Times Spotted 29 | . 20 9 Peak Tracking Total 4 | . 4 4 Tactical Retreats . | . . . Traps | -11 -10 -10 ------- Run | Yrd Mat Min Traps Triggered 2 | . 2 . Indirectly . | . . . Trap Hack Attempts . | . . . Triggered . | . . . Disarmed . | . . . Reprogrammed . | . . . Reused . | . . . Traps Extracted . | . . . Installed . | . . . Triggered . | . . . Machines | -11 -10 -10 ---------- Run | Yrd Mat Min Machines Disabled . | . . . Max in Single Turn . | . . . Machines Repaired . | . . . Machines Dismantled . | . . . Machines Sabotaged . | . . . Overloaded Fab Kills . | . . . Hacking | -11 -10 -10 --------- Run | Yrd Mat Min Machines Accessed 4 | . 4 . Terminals 4 | . 4 . Fabricators . | . . . Repair Stations . | . . . Recycling Units . | . . . Scanalyzers . | . . . Garrison Access . | . . . Total Hacks 15 | . 15 . Successful 7 | . 7 . Failed 8 | . 8 . Catastrophic 1 | . 1 . Database Lockouts . | . . . Manual 7 | . 7 . Terminals 15 | . 15 . Fabricators . | . . . Repair Stations . | . . . Recycling Units . | . . . Scanalyzers . | . . . Garrison Access . | . . . Terminal Hacks 6 | . 6 . Robot Analysis 3 | . 3 . Prototype ID Bank 1 | . 1 . Branch Access Points 1 | . 1 . Alert Level 1 | . 1 . Fabricator Hacks . | . . . Repair Station Hacks . | . . . Recycling Unit Hacks . | . . . Scanalyzer . | . . . Garrison Access Hacks . | . . . Unauthorized Hacks 1 | . 1 . Terminals 1 | . 1 . Botnet 1 | . 1 . Fabricators . | . . . Repair Stations . | . . . Recycling Units . | . . . Scanalyzers . | . . . Garrison Access . | . . . Data Cores Recovered 1 | . 1 . Used 1 | . 1 . Hacking Detections 4 | . 4 . Full Trace Events 2 | . 2 . Feedback Events . | . . . Feedback Blocked . | . . . Robot Schematics Acquired . | . . . Robots Built . | . . . Authchips . | . . . Time . | . . . Total Robot Build Rating . | . . . Part Schematics Acquired . | . . . Parts Built . | . . . Authchips . | . . . Time . | . . . Total Part Build Rating . | . . . Parts Repaired . | . . . Time . | . . . Parts Recycled . | . . . Recycled Matter . | . . . Retrieved Matter . | . . . Retrieved Components . | . . . Parts Scanalyzed . | . . . Part Schematics Acquired . | . . . Parts Damaged . | . . . Bothacking | -11 -10 -10 ------------ Run | Yrd Mat Min Used RIF Installer . | . . . Robots Hacked . | . . . Non-combat . | . . . Combat . | . . . Robot Hacks Applied . | . . . Relay Couplers Released . | . . . Fabnet Peak Effective % . | . . . Robots Rewired . | . . . Allies Hacked . | . . . Hacks Repelled . | . . . Allies | -11 -10 -10 -------- Run | Yrd Mat Min Total Allies . | . . . Largest Group . | . . . Highest-Rated Group . | . . . Highest-Rated Ally . | . . . Total Orders . | . . . Ally Attacks . | . . . Total Damage . | . . . Kills . | . . . Allies Corrupted . | . . . Allies Melted . | . . . Intel | -11 -10 -10 ------- Run | Yrd Mat Min Robot Analysis Total 3 | . 3 . Derelict Logs Recovered 1 | . . 1 Drone Launches . | . . . Drone Recoveries . | . . . Exploration | -11 -10 -10 ------------- Run | Yrd Mat Min Turns Passed 1843 | 129 695 1019 Spaces Moved 957 | 64 276 617 Core 4 | 4 . . Treads 879 | 60 276 543 Legs . | . . . Wheels 74 | . . 74 Hover . | . . . Flight . | . . . Fastest Speed 50 | 50 160 130 Average Speed 157 | 155 160 156 Slowest Speed 160 | 160 160 160 Overloaded Moves . | . . . Propulsion Burnouts . | . . . Robots Hopped . | . . . Cave-ins Triggered . | . . . Exploration Rate (%) 49 | 6 54 88 Regions Visited 2 Branch Regions 1 Pre-discovered Areas . | . . . Known Exits Taken 1 | . 1 . Unknown Exits Taken 1 | 1 . . Scrap Searched 1 | . . 1 Spaces Dug 51 | . . 51 Terrain Destroyed 99 | . 18 81 Melee . | . . . Projectile . | . . . AOE 99 | . 18 81 Terrain Rammed . | . . . Walls Destroyed . | . . . Machines Disabled . | . . . Actions | -11 -10 -10 --------- Run | Yrd Mat Min Total 1134 | 78 411 645 Wait 54 | . 52 2 Move 955 | 63 275 617 Hop . | . . . Pick Up 16 | 2 14 . Fast Attach 8 | 7 1 . Attach 1 | . . 1 Detach . | . . . Swap 8 | . 6 2 Drop 3 | . 3 . Fire 89 | 6 60 23 Melee . | . . . Ram . | . . . Kick . | . . . Crush . | . . . Escape Stasis . | . . . Rewire . | . . . Trap . | . . . Miscellaneous . | . . . Route ------- -11/Scrapyard -10/Materials (discovered 2 exits: [*Mat] / *Min) -10/Mines (discovered 1 exit: [*Mat]) History --------- Turn | Location | Event 19 | -11/Scrapyard | Discovered new exit (range 13) 130 | -11/Scrapyard | Entered Materials 308 | -10/Materials | Build established: Mutant 319 | -10/Materials | Identified exit to Mines 443 | -10/Materials | Discovered new exit (range 15) 527 | -10/Materials | Core integrity fell below 50% 825 | -10/Materials | Entered Mines 1262 | -10/Mines | Learned location of 1 exit from Materials 1427 | -10/Mines | Discovered new exit (range 7) 1668 | -10/Mines | A weapon hastily lodged in a ceiling crevice suddenly fell to the ground 1823 | -10/Mines | Core integrity fell below 20% 1844 | -10/Mines | Destroyed by Y-45 Defender with Beam Rifle Last Messages --------------- 01622_ The unstable cave ceiling collapses. 01624_ K-01 Serf collects debris. 01631_ R-06 Scavenger collects Flight Unit. 01634_ K-01 Serf collects debris. 01635_ The unstable cave ceiling collapses. 01635_ R-06 Scavenger collects Lgt. Assault Rifle. 01668_ An Enh. Flamer has been hastily shoved under some rubble with a note attached: "One is never enough." 01731_ K-01 Serf cleans the Laser Drill. 01765_ T-07 Excavator destroyed. 01767_ Acquired 22 matter. 01799_ Critical hit (Burn: +37). 01822_ U-05 Engineer lays Concrete. 01824_ Grenade Launcher destroyed. 01824_ U-05 Engineer builds a Wall. 01830_ Critical hit (Burn: +37). 01833_ U-05 Engineer lays Concrete. 01835_ Critical hit (Burn: +37). 01836_ U-05 Engineer lays Concrete. 01837_ G-34 Mercenary destroyed. 01838_ U-05 Engineer builds a Wall. Map ----- +----------------------------------------------------+ | | | | | | | | | | | ?????????????????????????????????????????????????? | | ?????????????????????????????????????????????????? | | ????????????????????????????????######???????????? | | ?????????????????????####?????## ##??????????? | | ????????????????????## ##????# #### ???? | | ????????????????????# ###### !??? | | ????????????????????# ???? | | ???????????????????## ##??????????? | | ?################### ### ##???????????? | | ?# ##?# #????????????? | | ?# ################ ##??# ##????????????? | | ?# #??????????????## ##??## ####?????????????? | | ## #???######??????## #?### ! #????????????????? | | #???#" "##?###??# ### #????????????????? | | ####???|! !!## ##?# # #????????????????? | | ????????! !!# #?# ## ###????????????????? | | ???????? #? #?# ## ##????????????????? | | ?????####/+### #??# ## g ?????????????? | | #???## #???# ###u! #??????????? | | ##?## #???# ###%# ##??????????? | | ### ##???# ###@## # ##???????????? | | ## ##????# ###Y######### #????????????? | | # ### #?????# #???????? #????????????? | | #?## ##????# #####?????????#????????????? | | #####??### ##???# #??????????????????????????? | | #????????## ##### #??????????????????????????? | | #?????????## ## #??????????????????????????? | | #??????????## ## ## #??????????????????????????? | | ##??????????#### ## #??????????????????????????? | | ##????????????# ## #??????????????????????????? | | [ #????#######?# ## #??????????????????????????? | | #???## ### #??????????? ??????????????? | | ###### ## #??####????? ??????????????? | | ## | #?## ##???? ??????????????? | | ## #### #???# ??????????????? | | ### #### #### ??? ??????????????? | | ##?# #??###### #?# ???# #???????????### | | #### #???????## #?# ????# #?????####### # | | *= !! #????????## ##?# ?????# #?????# | | #### #?????????####???# #?????# #?????# #### | | ???# #????????????????# ##????# #?????# #??## # | | #### #####????????????# ###### ####??# #???### | | #????????????# ###### # #??# #?????? | | ######### #???????????## % #??# #?????? | | ????????# ####???????## #??# #?????? | +----------------------------------------------------+ Best States ------------- Heat Dissipation 25 Energy Generation 10 Energy Capacity 250 Matter Stores 300 Matter Capacity 300 Sight Range 16 Terrain Scan Density 10 Evasion (%) 40 Recoil Reduction 2 Item Schematics ----------------- None Robot Schematics ------------------ None Fabricated ------------ Nothing Alien Tech Used ----------------- None Achievements -------------- None Challenges ------------ None Game ------ Seed MiniMicrowarpCannon Manual? 0 Play Time 00:11:32 Cumulative 77.8 hours Start 2024.04.30 @ 03:27:25 End 2024.04.30 @ 03:37:57 Sessions 1 Manual Loads 0 Difficulty Rogue Special Mode None Game No. 87 Rogue 87 Adventurer 0 Explorer 0 Win Type - Total 0 Types 0/0/0/0/0/0/0/0/0 Lore% 37 Gallery% 52 Achievement% 37 Wizard Run 0 Options --------- Layout 0 ASCII 0 Keyboard 0 Movement Mouse Keybinds 0 Fullscreen 2 Font 24/Smallcaps Map View 183x50 Zoom Use 0% Tactical HUD 1 Map Filters NONE Filters NONE Steam 0 RUN: 3fba539f-fa35-4446-8b3c-4ec529acdf4b